[Event "*** SCC Grand Prix: Titled Tuesday Blitz"]
[Site "Chess.com"]
[Date "2020.07.21"]
[Round "1"]
[White "ArjunErigaisi2003"]
[Black "hermionegrangermagic"]
[Result "0-1"]
[WhiteElo "3036"]
[BlackElo "2476"]
[TimeControl "180+1"]
[EndTime "10:06:30 PDT"]
[Termination "hermionegrangermagic won by resignation"]

1. b3 {[%clk 0:03:00.8]} 1... e5 {[%clk 0:02:57.6]} 2. Bb2 {[%clk 0:03:01.1]}
2... Nc6 {[%clk 0:02:57.2]} 3. e3 {[%clk 0:03:01.5]} 3... a6 {[%clk 0:02:55.1]}
4. c4 {[%clk 0:02:58.7]} 4... Nf6 {[%clk 0:02:54.6]} 5. Nc3 {[%clk 0:02:59.3]}
5... d5 {[%clk 0:02:53.8]} 6. cxd5 {[%clk 0:02:58.1]} 6... Nxd5 {[%clk
0:02:54.7]} 7. a3 {[%clk 0:02:58.5]} 7... Be6 {[%clk 0:02:52.8]} 8. Nge2 {[%clk
0:02:56.9]} 8... Be7 {[%clk 0:02:43.8]} 9. Nxd5 {[%clk 0:02:56.5]} 9... Bxd5
{[%clk 0:02:24.9]} 10. Nc3 {[%clk 0:02:55]} 10... Be6 {[%clk 0:02:24.5]} 11. Qc2
{[%clk 0:02:53.7]} 11... O-O {[%clk 0:02:23.6]} 12. h4 {[%clk 0:02:49]} 12...
Na5 {[%clk 0:01:48.7]} 13. b4 {[%clk 0:02:40.7]} 13... Nb3 {[%clk 0:01:48.2]}
14. Rd1 {[%clk 0:02:37.8]} 14... c5 {[%clk 0:01:43.6]} 15. b5 {[%clk 0:02:28.6]}
15... axb5 {[%clk 0:01:27.6]} 16. Bxb5 {[%clk 0:02:29.5]} 16... c4 {[%clk
0:01:21.8]} 17. Ne4 {[%clk 0:02:26.4]} 17... Qc7 {[%clk 0:01:14.6]} 18. Ng5
{[%clk 0:02:22.4]} 18... Bxg5 {[%clk 0:01:12]} 19. hxg5 {[%clk 0:02:23.3]} 19...
g6 {[%clk 0:01:12.4]} 20. Qe4 {[%clk 0:01:44]} 20... Nc5 {[%clk 0:00:46.5]} 21.
Qb1 {[%clk 0:01:15]} 21... Nd3+ {[%clk 0:00:45.3]} 22. Kf1 {[%clk 0:01:14.9]}
22... f6 {[%clk 0:00:39.9]} 23. f3 {[%clk 0:00:54.4]} 23... fxg5 {[%clk
0:00:37.5]} 24. Kg1 {[%clk 0:00:55]} 24... e4 {[%clk 0:00:32.3]} 25. Rh2 {[%clk
0:00:42.3]} 25... exf3 {[%clk 0:00:27.5]} 26. gxf3 {[%clk 0:00:43.2]} 26... Rxf3
{[%clk 0:00:23.5]} 27. Qc2 {[%clk 0:00:32.5]} 27... Rg3+ {[%clk 0:00:20.8]} 28.
Rg2 {[%clk 0:00:31.1]} 28... Rxg2+ {[%clk 0:00:20.5]} 29. Kxg2 {[%clk 0:00:32]}
29... Bd5+ {[%clk 0:00:20.5]} 0-1

[Event "*** SCC Grand Prix: Titled Tuesday Blitz"]
[Site "Chess.com"]
[Date "2020.07.21"]
[Round "1"]
[White "Boudicca64"]
[Black "AquivaRubinstein"]
[Result "0-1"]
[WhiteElo "1784"]
[BlackElo "2469"]
[TimeControl "180+1"]
[EndTime "10:06:30 PDT"]
[Termination "AquivaRubinstein won by resignation"]

1. e4 {[%clk 0:02:56.6]} 1... c5 {[%clk 0:02:56.5]} 2. g3 {[%clk 0:02:54.5]}
2... Nf6 {[%clk 0:02:54]} 3. Bg2 {[%clk 0:02:53]} 3... Nc6 {[%clk 0:02:53.4]} 4.
Ne2 {[%clk 0:02:52.2]} 4... g6 {[%clk 0:02:52.8]} 5. c3 {[%clk 0:02:51.9]} 5...
d5 {[%clk 0:02:43.7]} 6. exd5 {[%clk 0:02:49.8]} 6... Nxd5 {[%clk 0:02:43.4]} 7.
h3 {[%clk 0:02:46.6]} 7... Bg7 {[%clk 0:02:43.2]} 8. O-O {[%clk 0:02:45.3]} 8...
O-O {[%clk 0:02:42.8]} 9. d4 {[%clk 0:02:44.6]} 9... cxd4 {[%clk 0:02:42.1]} 10.
cxd4 {[%clk 0:02:43.9]} 10... b6 {[%clk 0:02:27.4]} 11. Nbc3 {[%clk 0:02:41.9]}
11... e6 {[%clk 0:02:22.3]} 12. Nf4 {[%clk 0:02:18.9]} 12... Nxc3 {[%clk
0:01:56.2]} 13. bxc3 {[%clk 0:02:16.3]} 13... Bb7 {[%clk 0:01:56.7]} 14. Qe2
{[%clk 0:01:47.8]} 14... Rc8 {[%clk 0:01:53.9]} 15. Be3 {[%clk 0:01:26.4]} 15...
Qd7 {[%clk 0:01:53.4]} 16. Rfd1 {[%clk 0:01:22.5]} 16... Na5 {[%clk 0:01:53]}
17. Rac1 {[%clk 0:01:14]} 17... Bxg2 {[%clk 0:01:51.4]} 18. Kxg2 {[%clk
0:01:12.9]} 18... Rc4 {[%clk 0:01:31.7]} 19. d5 {[%clk 0:01:03.1]} 19... e5
{[%clk 0:01:23.5]} 20. Nd3 {[%clk 0:00:43.3]} 20... Qxd5+ {[%clk 0:01:22.6]} 21.
Kh2 {[%clk 0:00:41.8]} 21... Qc6 {[%clk 0:01:11.6]} 22. Nb4 {[%clk 0:00:32.6]}
22... Qb7 {[%clk 0:01:00.4]} 23. Rd6 {[%clk 0:00:24.5]} 23... Rfc8 {[%clk
0:00:50.9]} 24. Rcd1 {[%clk 0:00:22.4]} 24... h6 {[%clk 0:00:30.5]} 25. Qg4
{[%clk 0:00:14.6]} 25... Rxg4 {[%clk 0:00:27.6]} 0-1

[Event "*** SCC Grand Prix: Titled Tuesday Blitz"]
[Site "Chess.com"]
[Date "2020.07.21"]
[Round "1"]
[White "Mikhail_Golubev"]
[Black "czasnaszachy"]
[Result "1-0"]
[WhiteElo "2602"]
[BlackElo "2258"]
[TimeControl "180+1"]
[EndTime "10:06:31 PDT"]
[Termination "Mikhail_Golubev won by checkmate"]

1. e4 {[%clk 0:03:00.9]} 1... c5 {[%clk 0:02:58.8]} 2. Nf3 {[%clk 0:03:00.2]}
2... e6 {[%clk 0:02:57.5]} 3. d4 {[%clk 0:02:58.9]} 3... cxd4 {[%clk 0:02:57.6]}
4. Nxd4 {[%clk 0:02:59.3]} 4... Nc6 {[%clk 0:02:56.3]} 5. Nc3 {[%clk 0:02:59.2]}
5... a6 {[%clk 0:02:55.3]} 6. Be3 {[%clk 0:02:56.6]} 6... Qc7 {[%clk 0:02:52.7]}
7. a3 {[%clk 0:02:54.3]} 7... Nf6 {[%clk 0:02:50]} 8. f4 {[%clk 0:02:53.7]} 8...
d6 {[%clk 0:02:40]} 9. Qf3 {[%clk 0:02:52.6]} 9... Be7 {[%clk 0:02:28.7]} 10.
Bd3 {[%clk 0:02:51.4]} 10... O-O {[%clk 0:02:05.6]} 11. O-O-O {[%clk 0:02:40.1]}
11... e5 {[%clk 0:02:02.4]} 12. Nxc6 {[%clk 0:02:07.1]} 12... bxc6 {[%clk
0:02:01.6]} 13. f5 {[%clk 0:01:56.3]} 13... Rb8 {[%clk 0:01:51.2]} 14. g4 {[%clk
0:01:56.2]} 14... d5 {[%clk 0:01:21.9]} 15. g5 {[%clk 0:01:55.7]} 15... dxe4
{[%clk 0:01:11.7]} 16. Nxe4 {[%clk 0:01:52.9]} 16... Nxe4 {[%clk 0:01:09.3]} 17.
Bxe4 {[%clk 0:01:52.8]} 17... Qb7 {[%clk 0:00:57.7]} 18. b3 {[%clk 0:01:51.8]}
18... Bxa3+ {[%clk 0:00:56.9]} 19. Kb1 {[%clk 0:01:51.2]} 19... Qb4 {[%clk
0:00:46.4]} 20. Bd2 {[%clk 0:01:43.6]} 20... Qc5 {[%clk 0:00:26.2]} 21. h4
{[%clk 0:00:48.9]} 21... a5 {[%clk 0:00:25.5]} 22. f6 {[%clk 0:00:44]} 22... g6
{[%clk 0:00:22.1]} 23. h5 {[%clk 0:00:43.4]} 23... Be6 {[%clk 0:00:19.8]} 24.
hxg6 {[%clk 0:00:41.5]} 24... fxg6 {[%clk 0:00:10.5]} 25. Rxh7 {[%clk
0:00:37.8]} 25... Kxh7 {[%clk 0:00:04.7]} 26. Qh5+ {[%clk 0:00:37]} 26... Kg8
{[%clk 0:00:02.3]} 27. Qxg6+ {[%clk 0:00:37]} 27... Kh8 {[%clk 0:00:02.6]} 28.
Qg7# {[%clk 0:00:37]} 1-0

[Event "*** SCC Grand Prix: Titled Tuesday Blitz"]
[Site "Chess.com"]
[Date "2020.07.21"]
[Round "1"]
[White "cukin84"]
[Black "SamuelGhimpu2003"]
[Result "0-1"]
[WhiteElo "2172"]
[BlackElo "2560"]
[TimeControl "180+1"]
[EndTime "10:06:31 PDT"]
[Termination "SamuelGhimpu2003 won by resignation"]

1. e4 {[%clk 0:03:00.9]} 1... g6 {[%clk 0:02:57.2]} 2. d4 {[%clk 0:02:55.1]}
2... Bg7 {[%clk 0:02:58.1]} 3. Be3 {[%clk 0:02:52.6]} 3... d6 {[%clk 0:02:54]}
4. Nc3 {[%clk 0:02:52]} 4... a6 {[%clk 0:02:53.9]} 5. Qd2 {[%clk 0:02:49.7]}
5... b5 {[%clk 0:02:51.4]} 6. a3 {[%clk 0:02:46.8]} 6... Bb7 {[%clk 0:02:50.1]}
7. f3 {[%clk 0:02:45.3]} 7... Nd7 {[%clk 0:02:49.4]} 8. g4 {[%clk 0:02:44.1]}
8... c5 {[%clk 0:02:48]} 9. h4 {[%clk 0:02:40]} 9... h5 {[%clk 0:02:24.5]} 10.
gxh5 {[%clk 0:02:25.1]} 10... Rxh5 {[%clk 0:02:25.2]} 11. Nge2 {[%clk
0:02:24.6]} 11... cxd4 {[%clk 0:02:16.1]} 12. Bxd4 {[%clk 0:02:24]} 12... Ne5
{[%clk 0:02:15.9]} 13. Bg2 {[%clk 0:02:05.2]} 13... Nc4 {[%clk 0:01:56.7]} 14.
Qc1 {[%clk 0:01:55.6]} 14... e5 {[%clk 0:01:55.8]} 15. Bf2 {[%clk 0:01:50.1]}
15... Bh6 {[%clk 0:01:55.5]} 16. Qd1 {[%clk 0:01:42.1]} 16... Nxb2 {[%clk
0:01:53.8]} 17. Qb1 {[%clk 0:01:40.8]} 17... Nc4 {[%clk 0:01:51.2]} 18. Ng3
{[%clk 0:01:38]} 18... Bd2+ {[%clk 0:01:50]} 19. Kf1 {[%clk 0:01:37.2]} 19...
Bxc3 {[%clk 0:01:50.9]} 20. Nxh5 {[%clk 0:01:35.7]} 20... Bxa1 {[%clk
0:01:47.8]} 21. Ng7+ {[%clk 0:01:33.1]} 21... Kf8 {[%clk 0:01:47.6]} 22. Ne6+
{[%clk 0:01:32.2]} 22... fxe6 {[%clk 0:01:47.5]} 23. Qxa1 {[%clk 0:01:33.1]}
23... Nf6 {[%clk 0:01:44.4]} 24. Bh3 {[%clk 0:01:29]} 24... Qe7 {[%clk
0:01:36.8]} 25. Rg1 {[%clk 0:01:25.2]} 25... Qf7 {[%clk 0:01:31.9]} 26. Qc3
{[%clk 0:01:22.8]} 26... Nh5 {[%clk 0:01:25.9]} 27. Bg4 {[%clk 0:01:19.9]} 27...
Rc8 {[%clk 0:01:10.1]} 28. Qb4 {[%clk 0:01:17]} 28... Nf4 {[%clk 0:00:37.2]} 29.
a4 {[%clk 0:01:08.6]} 29... Bc6 {[%clk 0:00:35.7]} 30. axb5 {[%clk 0:01:08]}
30... Bxb5 {[%clk 0:00:36.6]} 31. Ke1 {[%clk 0:01:04.5]} 31... Qc7 {[%clk
0:00:31]} 32. h5 {[%clk 0:00:59.7]} 32... gxh5 {[%clk 0:00:29.7]} 33. Rh1 {[%clk
0:00:49.7]} 33... hxg4 {[%clk 0:00:25.4]} 34. Rh8+ {[%clk 0:00:47.4]} 34... Kg7
{[%clk 0:00:25.5]} 35. Rxc8 {[%clk 0:00:47.5]} 35... Qxc8 {[%clk 0:00:26.4]} 36.
fxg4 {[%clk 0:00:45.3]} 36... Qc6 {[%clk 0:00:26.5]} 0-1

[Event "*** SCC Grand Prix: Titled Tuesday Blitz"]
[Site "Chess.com"]
[Date "2020.07.21"]
[Round "1"]
[White "TudorAnton"]
[Black "Yoshikrov"]
[Result "1-0"]
[WhiteElo "2520"]
[BlackElo "2120"]
[TimeControl "180+1"]
[EndTime "10:06:32 PDT"]
[Termination "TudorAnton won on time"]

1. d4 {[%clk 0:02:56.8]} 1... Nf6 {[%clk 0:02:53.6]} 2. c4 {[%clk 0:02:47]} 2...
g6 {[%clk 0:02:53.1]} 3. Nc3 {[%clk 0:02:45.1]} 3... d5 {[%clk 0:02:52.7]} 4.
Nf3 {[%clk 0:02:43.6]} 4... Bg7 {[%clk 0:02:52.2]} 5. Bg5 {[%clk 0:02:39.2]}
5... c6 {[%clk 0:02:47.4]} 6. e3 {[%clk 0:02:37.5]} 6... O-O {[%clk 0:02:47.4]}
7. Be2 {[%clk 0:02:36]} 7... Be6 {[%clk 0:02:45]} 8. cxd5 {[%clk 0:02:31.9]}
8... Nxd5 {[%clk 0:02:42.2]} 9. O-O {[%clk 0:02:30.8]} 9... Nxc3 {[%clk
0:02:11.9]} 10. bxc3 {[%clk 0:02:31.7]} 10... Nd7 {[%clk 0:01:58.7]} 11. Qc2
{[%clk 0:02:29.7]} 11... c5 {[%clk 0:01:49.9]} 12. Qb2 {[%clk 0:02:27.2]} 12...
b6 {[%clk 0:01:39]} 13. a4 {[%clk 0:02:20.4]} 13... cxd4 {[%clk 0:01:38.8]} 14.
cxd4 {[%clk 0:02:20.2]} 14... h6 {[%clk 0:01:39.4]} 15. Bh4 {[%clk 0:02:19.9]}
15... Nf6 {[%clk 0:01:37.3]} 16. a5 {[%clk 0:02:12.1]} 16... bxa5 {[%clk
0:01:17.5]} 17. Ne5 {[%clk 0:02:12]} 17... Rc8 {[%clk 0:01:10.5]} 18. Ba6 {[%clk
0:02:04.1]} 18... Rb8 {[%clk 0:01:08.9]} 19. Qa3 {[%clk 0:02:02.3]} 19... Qb6
{[%clk 0:01:05]} 20. Qxa5 {[%clk 0:02:02]} 20... Qxa5 {[%clk 0:01:03.8]} 21.
Rxa5 {[%clk 0:02:02.9]} 21... Rb2 {[%clk 0:00:56.4]} 22. h3 {[%clk 0:01:49.6]}
22... g5 {[%clk 0:00:56.4]} 23. Bg3 {[%clk 0:01:49.6]} 23... Ne4 {[%clk
0:00:55.7]} 24. Bh2 {[%clk 0:01:48.1]} 24... Rfb8 {[%clk 0:00:51.3]} 25. Bd3
{[%clk 0:01:47.2]} 25... Nf6 {[%clk 0:00:46.4]} 26. Nc6 {[%clk 0:01:43.3]} 26...
R8b3 {[%clk 0:00:44.3]} 27. Rd1 {[%clk 0:01:36.4]} 27... Nd5 {[%clk 0:00:32.9]}
28. Bf1 {[%clk 0:01:20.4]} 28... Nc3 {[%clk 0:00:28.6]} 29. Rda1 {[%clk
0:01:13.2]} 29... Ne2+ {[%clk 0:00:20.1]} 30. Bxe2 {[%clk 0:01:12.4]} 30... Rxe2
{[%clk 0:00:20]} 31. Nxe7+ {[%clk 0:01:11.8]} 31... Kh7 {[%clk 0:00:19.3]} 32.
Nf5 {[%clk 0:01:11.3]} 32... Bf6 {[%clk 0:00:16.7]} 33. Ng3 {[%clk 0:01:05.9]}
33... Rd2 {[%clk 0:00:14.8]} 34. Ne4 {[%clk 0:01:05.1]} 1-0

[Event "*** SCC Grand Prix: Titled Tuesday Blitz"]
[Site "Chess.com"]
[Date "2020.07.21"]
[Round "1"]
[White "Hikaru"]
[Black "PotapovaM"]
[Result "1-0"]
[WhiteElo "3262"]
[BlackElo "2463"]
[TimeControl "180+1"]
[EndTime "10:06:33 PDT"]
[Termination "Hikaru won by resignation"]

1. Nf3 {[%clk 0:03:00.9]} 1... Nf6 {[%clk 0:02:59.7]} 2. b3 {[%clk 0:03:00.6]}
2... g6 {[%clk 0:02:59.2]} 3. Bb2 {[%clk 0:03:00.5]} 3... Bg7 {[%clk 0:02:59.8]}
4. d4 {[%clk 0:03:01.4]} 4... O-O {[%clk 0:02:58.1]} 5. e3 {[%clk 0:03:01.6]}
5... b6 {[%clk 0:02:58]} 6. Be2 {[%clk 0:03:01.3]} 6... Bb7 {[%clk 0:02:58.6]}
7. O-O {[%clk 0:03:01.9]} 7... d6 {[%clk 0:02:59.3]} 8. c4 {[%clk 0:03:02.3]}
8... Nbd7 {[%clk 0:02:59.7]} 9. Qc2 {[%clk 0:03:02.7]} 9... Ne4 {[%clk
0:02:58.9]} 10. Rd1 {[%clk 0:03:02.1]} 10... a5 {[%clk 0:02:57.1]} 11. Na3
{[%clk 0:03:00.4]} 11... e6 {[%clk 0:02:36.7]} 12. Nb5 {[%clk 0:02:57.8]} 12...
Rc8 {[%clk 0:02:36.2]} 13. Na7 {[%clk 0:02:55.3]} 13... Ra8 {[%clk 0:02:35.7]}
14. Nb5 {[%clk 0:02:55.9]} 14... Rc8 {[%clk 0:02:35.8]} 15. d5 {[%clk
0:02:56.5]} 15... Bxb2 {[%clk 0:02:32.8]} 16. Qxb2 {[%clk 0:02:56.5]} 16... e5
{[%clk 0:02:30.7]} 17. a3 {[%clk 0:02:51.7]} 17... f5 {[%clk 0:02:26.6]} 18. b4
{[%clk 0:02:51.6]} 18... Rb8 {[%clk 0:02:13.7]} 19. Na7 {[%clk 0:02:49.1]} 19...
f4 {[%clk 0:01:58.8]} 20. Nc6 {[%clk 0:02:33]} 20... Bxc6 {[%clk 0:01:54.5]} 21.
dxc6 {[%clk 0:02:33.9]} 21... Ndf6 {[%clk 0:01:52]} 22. exf4 {[%clk 0:02:30.2]}
22... exf4 {[%clk 0:01:52.9]} 23. Nd4 {[%clk 0:02:30.4]} 23... Qe7 {[%clk
0:01:51.6]} 24. Bf3 {[%clk 0:02:25.9]} 24... Ng5 {[%clk 0:01:49.4]} 25. Re1
{[%clk 0:02:12.7]} 25... Nxf3+ {[%clk 0:01:47.4]} 26. Nxf3 {[%clk 0:02:11.8]}
26... Qf7 {[%clk 0:01:45.5]} 27. Qd4 {[%clk 0:02:04.6]} 27... Ng4 {[%clk
0:01:22.8]} 28. h3 {[%clk 0:01:56.3]} 28... Nh6 {[%clk 0:01:21.9]} 29. Ng5
{[%clk 0:01:54.7]} 29... Qf6 {[%clk 0:01:01.3]} 30. Qxf6 {[%clk 0:01:51]} 30...
Rxf6 {[%clk 0:01:02.2]} 31. Re7 {[%clk 0:01:51]} 31... Rf5 {[%clk 0:00:56.8]}
32. h4 {[%clk 0:01:25.7]} 32... Rc8 {[%clk 0:00:50]} 33. Rae1 {[%clk 0:01:15.5]}
33... Nf7 {[%clk 0:00:22.6]} 34. Re8+ {[%clk 0:01:09.9]} 34... Rxe8 {[%clk
0:00:22.5]} 35. Rxe8+ {[%clk 0:01:10.8]} 35... Kg7 {[%clk 0:00:23.4]} 36. Re7
{[%clk 0:01:09.1]} 36... Kf8 {[%clk 0:00:19]} 37. Rxc7 {[%clk 0:01:08.8]} 37...
Nxg5 {[%clk 0:00:18.9]} 38. hxg5 {[%clk 0:01:09.5]} 38... Re5 {[%clk 0:00:17.3]}
39. Rxh7 {[%clk 0:01:04.9]} 39... Kg8 {[%clk 0:00:15.8]} 40. Rd7 {[%clk
0:01:02]} 40... Re8 {[%clk 0:00:14]} 41. c7 {[%clk 0:01:01.4]} 1-0

[Event "*** SCC Grand Prix: Titled Tuesday Blitz"]
[Site "Chess.com"]
[Date "2020.07.21"]
[Round "1"]
[White "memer5334"]
[Black "Ermito2020"]
[Result "0-1"]
[WhiteElo "2231"]
[BlackElo "2582"]
[TimeControl "180+1"]
[EndTime "10:06:33 PDT"]
[Termination "Ermito2020 won by resignation"]

1. d4 {[%clk 0:02:59.6]} 1... d5 {[%clk 0:02:59.1]} 2. c4 {[%clk 0:02:57.2]}
2... e6 {[%clk 0:02:58.6]} 3. Nc3 {[%clk 0:02:55.3]} 3... c6 {[%clk 0:02:57.9]}
4. cxd5 {[%clk 0:02:51.1]} 4... exd5 {[%clk 0:02:56.8]} 5. Nf3 {[%clk
0:02:51.1]} 5... Nf6 {[%clk 0:02:55]} 6. Bg5 {[%clk 0:02:50.3]} 6... Be7 {[%clk
0:02:54.8]} 7. e3 {[%clk 0:02:47.4]} 7... Bf5 {[%clk 0:02:47.8]} 8. Ne5 {[%clk
0:02:45.1]} 8... Nbd7 {[%clk 0:02:43]} 9. Bd3 {[%clk 0:02:44.5]} 9... Bxd3
{[%clk 0:02:38.1]} 10. Qxd3 {[%clk 0:02:42.1]} 10... O-O {[%clk 0:02:20]} 11.
O-O {[%clk 0:02:28.4]} 11... Nxe5 {[%clk 0:02:18.6]} 12. dxe5 {[%clk 0:02:28.4]}
12... Nd7 {[%clk 0:02:18.5]} 13. Bf4 {[%clk 0:02:23]} 13... Nc5 {[%clk
0:01:59.6]} 14. Qe2 {[%clk 0:02:14.1]} 14... f6 {[%clk 0:01:57.6]} 15. Rad1
{[%clk 0:02:05.9]} 15... Ne6 {[%clk 0:01:52.8]} 16. Bg3 {[%clk 0:02:03.7]} 16...
fxe5 {[%clk 0:01:40]} 17. Bxe5 {[%clk 0:02:02.5]} 17... Bf6 {[%clk 0:01:40.7]}
18. Bg3 {[%clk 0:01:44.2]} 18... Qa5 {[%clk 0:01:34.8]} 19. Qg4 {[%clk
0:01:22.3]} 19... Rae8 {[%clk 0:01:30.9]} 20. h4 {[%clk 0:00:45.1]} 20... Bxc3
{[%clk 0:01:24.2]} 21. bxc3 {[%clk 0:00:45.4]} 21... Qxc3 {[%clk 0:01:23.9]} 22.
Rb1 {[%clk 0:00:45.5]} 22... Rf7 {[%clk 0:01:22.3]} 23. e4 {[%clk 0:00:41]}
23... Qc4 {[%clk 0:01:15.4]} 24. Rfe1 {[%clk 0:00:29.8]} 24... Nf8 {[%clk
0:01:07.3]} 25. f3 {[%clk 0:00:28.2]} 25... dxe4 {[%clk 0:01:03]} 26. fxe4
{[%clk 0:00:23.6]} 26... Qxa2 {[%clk 0:01:02.7]} 27. e5 {[%clk 0:00:20.5]} 27...
Qe6 {[%clk 0:01:02.1]} 28. Qa4 {[%clk 0:00:16.4]} 28... b5 {[%clk 0:00:59.9]}
29. Qc2 {[%clk 0:00:14]} 29... a5 {[%clk 0:00:53.2]} 30. Rbd1 {[%clk 0:00:13.3]}
30... Rd7 {[%clk 0:00:51.4]} 31. Rxd7 {[%clk 0:00:12.7]} 31... Nxd7 {[%clk
0:00:48.8]} 32. Qe4 {[%clk 0:00:09.3]} 32... a4 {[%clk 0:00:45.1]} 33. Rd1
{[%clk 0:00:08.8]} 33... a3 {[%clk 0:00:44.3]} 34. Rd6 {[%clk 0:00:08.7]} 34...
Qxd6 {[%clk 0:00:43.7]} 35. exd6 {[%clk 0:00:08.7]} 35... Rxe4 {[%clk
0:00:43.4]} 0-1

[Event "*** SCC Grand Prix: Titled Tuesday Blitz"]
[Site "Chess.com"]
[Date "2020.07.21"]
[Round "1"]
[White "bugsbunny444"]
[Black "DonPreuss"]
[Result "1-0"]
[WhiteElo "2558"]
[BlackElo "2168"]
[TimeControl "180+1"]
[EndTime "10:06:33 PDT"]
[Termination "bugsbunny444 won by resignation"]

1. Nf3 {[%clk 0:02:51.9]} 1... b6 {[%clk 0:02:58.1]} 2. g3 {[%clk 0:02:50.7]}
2... Bb7 {[%clk 0:02:57.8]} 3. Bg2 {[%clk 0:02:51.3]} 3... f5 {[%clk 0:02:54.6]}
4. O-O {[%clk 0:02:50.1]} 4... Nf6 {[%clk 0:02:54.5]} 5. d4 {[%clk 0:02:45.1]}
5... e6 {[%clk 0:02:53.2]} 6. c4 {[%clk 0:02:45.4]} 6... Be7 {[%clk 0:02:38.5]}
7. d5 {[%clk 0:02:44.8]} 7... exd5 {[%clk 0:02:13.9]} 8. Nd4 {[%clk 0:02:42.7]}
8... O-O {[%clk 0:01:37.8]} 9. Nxf5 {[%clk 0:02:34.9]} 9... c6 {[%clk
0:00:58.5]} 10. cxd5 {[%clk 0:02:22.2]} 10... cxd5 {[%clk 0:00:57.9]} 11. Nc3
{[%clk 0:02:14.8]} 11... Nc6 {[%clk 0:00:54.3]} 12. Nxd5 {[%clk 0:02:11.7]}
12... Bc5 {[%clk 0:00:52.5]} 13. Bg5 {[%clk 0:02:00.7]} 13... Rc8 {[%clk
0:00:15.2]} 14. Qd2 {[%clk 0:01:51.1]} 14... Qe8 {[%clk 0:00:13.5]} 15. Nxf6+
{[%clk 0:01:00.6]} 15... gxf6 {[%clk 0:00:14.4]} 16. Bh6 {[%clk 0:00:56.6]}
16... Qg6 {[%clk 0:00:08.3]} 17. Bd5+ {[%clk 0:00:51.9]} 17... Kh8 {[%clk
0:00:08]} 18. Bg7+ {[%clk 0:00:51.9]} 18... Qxg7 {[%clk 0:00:08.6]} 19. Nxg7
{[%clk 0:00:52.2]} 19... Kxg7 {[%clk 0:00:09.5]} 20. e3 {[%clk 0:00:39.9]} 20...
Rce8 {[%clk 0:00:09.4]} 21. a3 {[%clk 0:00:34.8]} 21... h5 {[%clk 0:00:06.4]}
22. b4 {[%clk 0:00:34.3]} 22... Be7 {[%clk 0:00:06.4]} 23. Bf3 {[%clk
0:00:33.5]} 23... h4 {[%clk 0:00:05.9]} 24. Qxd7 {[%clk 0:00:30.2]} 1-0

[Event "*** SCC Grand Prix: Titled Tuesday Blitz"]
[Site "Chess.com"]
[Date "2020.07.21"]
[Round "1"]
[White "ulises2013"]
[Black "Dauletova"]
[Result "0-1"]
[WhiteElo "2618"]
[BlackElo "2316"]
[TimeControl "180+1"]
[EndTime "10:06:34 PDT"]
[Termination "Dauletova won by resignation"]

1. d4 {[%clk 0:02:59.6]} 1... Nf6 {[%clk 0:02:59.5]} 2. c4 {[%clk 0:02:59.2]}
2... e6 {[%clk 0:02:59.5]} 3. Nf3 {[%clk 0:02:59]} 3... d5 {[%clk 0:02:58.2]} 4.
e3 {[%clk 0:02:55.7]} 4... c5 {[%clk 0:02:57.3]} 5. b3 {[%clk 0:02:55.5]} 5...
Nc6 {[%clk 0:02:55.9]} 6. Bb2 {[%clk 0:02:55.2]} 6... cxd4 {[%clk 0:02:55]} 7.
Nxd4 {[%clk 0:02:51.9]} 7... Bb4+ {[%clk 0:02:53.8]} 8. Nc3 {[%clk 0:02:47.1]}
8... Ne4 {[%clk 0:02:49.2]} 9. Rc1 {[%clk 0:02:43.6]} 9... Qa5 {[%clk
0:02:47.7]} 10. Nb5 {[%clk 0:02:25.7]} 10... O-O {[%clk 0:02:21.1]} 11. cxd5
{[%clk 0:02:13.7]} 11... exd5 {[%clk 0:01:50.2]} 12. a3 {[%clk 0:02:02.3]} 12...
Bxc3+ {[%clk 0:01:30.2]} 13. Nxc3 {[%clk 0:02:01.2]} 13... d4 {[%clk 0:00:50.6]}
14. b4 {[%clk 0:01:19]} 14... Nxc3 {[%clk 0:00:27.2]} 15. Bxc3 {[%clk
0:01:11.8]} 15... Qxa3 {[%clk 0:00:26]} 16. Bd2 {[%clk 0:01:02.3]} 16... dxe3
{[%clk 0:00:22]} 17. fxe3 {[%clk 0:01:03.2]} 17... Nxb4 {[%clk 0:00:21]} 18. Rc3
{[%clk 0:00:57.4]} 18... Qb2 {[%clk 0:00:19.7]} 19. Rb3 {[%clk 0:00:44.9]} 19...
Nc2+ {[%clk 0:00:19.2]} 20. Kf2 {[%clk 0:00:43]} 20... Qxb3 {[%clk 0:00:19.4]}
21. Qh5 {[%clk 0:00:37.1]} 21... Be6 {[%clk 0:00:18.3]} 22. Be2 {[%clk
0:00:36.1]} 22... Qd5 {[%clk 0:00:15.7]} 23. Qxd5 {[%clk 0:00:31.2]} 23... Bxd5
{[%clk 0:00:16.6]} 24. Rd1 {[%clk 0:00:31.2]} 24... Be4 {[%clk 0:00:15.6]} 25.
Bb4 {[%clk 0:00:30.6]} 25... Rfd8 {[%clk 0:00:15.1]} 26. Rc1 {[%clk 0:00:30.9]}
26... Nxb4 {[%clk 0:00:13.9]} 27. Rc4 {[%clk 0:00:29.8]} 27... Nd3+ {[%clk
0:00:13.5]} 0-1

[Event "*** SCC Grand Prix: Titled Tuesday Blitz"]
[Site "Chess.com"]
[Date "2020.07.21"]
[Round "1"]
[White "Iskusnyh"]
[Black "gagtemp"]
[Result "1-0"]
[WhiteElo "2482"]
[BlackElo "1961"]
[TimeControl "180+1"]
[EndTime "10:06:35 PDT"]
[Termination "Iskusnyh won by resignation"]

1. d4 {[%clk 0:02:58.9]} 1... d5 {[%clk 0:02:59.4]} 2. c4 {[%clk 0:02:58.4]}
2... e6 {[%clk 0:02:59]} 3. g3 {[%clk 0:02:58.4]} 3... c5 {[%clk 0:02:58.4]} 4.
cxd5 {[%clk 0:02:57.3]} 4... exd5 {[%clk 0:02:59]} 5. Nf3 {[%clk 0:02:57.1]}
5... Nc6 {[%clk 0:02:57.8]} 6. Bg2 {[%clk 0:02:56.8]} 6... Nf6 {[%clk
0:02:56.5]} 7. O-O {[%clk 0:02:56.4]} 7... Be7 {[%clk 0:02:56.1]} 8. dxc5 {[%clk
0:02:54.9]} 8... Bxc5 {[%clk 0:02:54.1]} 9. a3 {[%clk 0:02:54.4]} 9... O-O
{[%clk 0:02:52.4]} 10. b4 {[%clk 0:02:51.8]} 10... Be7 {[%clk 0:02:50.7]} 11.
Bb2 {[%clk 0:02:47.6]} 11... Bg4 {[%clk 0:02:38.7]} 12. Nc3 {[%clk 0:02:32.3]}
12... a6 {[%clk 0:02:25.5]} 13. Rc1 {[%clk 0:02:29.3]} 13... Qd7 {[%clk
0:02:24.4]} 14. Na4 {[%clk 0:02:10.2]} 14... Rad8 {[%clk 0:02:20.8]} 15. Nc5
{[%clk 0:02:09]} 15... Bxc5 {[%clk 0:02:20.6]} 16. Rxc5 {[%clk 0:02:06.7]} 16...
Ne4 {[%clk 0:02:16.2]} 17. Rc2 {[%clk 0:02:06]} 17... Bh3 {[%clk 0:02:07.2]} 18.
Nd4 {[%clk 0:02:03.8]} 18... Bxg2 {[%clk 0:02:01.9]} 19. Kxg2 {[%clk 0:02:03.1]}
19... Rfe8 {[%clk 0:01:52]} 20. Nxc6 {[%clk 0:02:01.6]} 20... bxc6 {[%clk
0:01:49.9]} 21. Qd4 {[%clk 0:02:01.5]} 21... Nf6 {[%clk 0:01:34.9]} 22. Rfc1
{[%clk 0:01:57.7]} 22... Re6 {[%clk 0:01:30.2]} 23. Qb6 {[%clk 0:01:48]} 23...
Rde8 {[%clk 0:01:08.7]} 24. Bxf6 {[%clk 0:01:12.2]} 24... Rxf6 {[%clk
0:01:03.9]} 25. Rxc6 {[%clk 0:01:04.9]} 25... Qg4 {[%clk 0:00:31.5]} 26. Qxa6
{[%clk 0:00:36.8]} 26... Qe4+ {[%clk 0:00:23.1]} 27. Kg1 {[%clk 0:00:34.9]}
27... Rxf2 {[%clk 0:00:18.1]} 28. Kxf2 {[%clk 0:00:29.4]} 28... Qxe2+ {[%clk
0:00:18.1]} 29. Qxe2 {[%clk 0:00:28.2]} 1-0